fUST/lending_fUST_20250215
["ID","MTS","AMOUNT","RATE_DAILY","PERIOD"]
[353152283,1739613046114,-1416.21,8.851e-05,2]
[353152284,1739613046125,-710.71,8.851e-05,2]
[353152285,1739613046135,-501.39361505,8.851e-05,2]
[353152286,1739613046144,-1338.39,8.851e-05,2]
[353152288,1739613046153,-6335.68,8.851e-05,2]
[353152289,1739613046162,-500.0,8.851e-05,2]
[353152290,1739613046171,-474.07927628,8.851e-05,2]
[353152291,1739613046189,-500.0,8.851e-05,2]
[353152292,1739613046202,-3400.42,8.851e-05,2]
[353152293,1739613046213,-2697.83,8.851e-05,2]
[353152294,1739613046223,-500.0,8.851e-05,2]
[353152295,1739613046234,-2838.9,8.851e-05,2]
[353152296,1739613046245,-500.0,8.851e-05,2]
[353152297,1739613046255,-2780.3,8.851e-05,2]
[353152298,1739613046265,-1176.8,8.851e-05,2]
[353152299,1739613046275,-500.0,8.851e-05,2]
[353152300,1739613046284,-504.40268632,8.851e-05,2]
[353152301,1739613046295,-500.0,8.851e-05,2]
[353152302,1739613046305,-151.0,8.852e-05,2]
[353152303,1739613046314,-151.0,8.852e-05,2]
[353152304,1739613046324,-151.0,8.852e-05,2]
[353152305,1739613046333,-151.0,8.852e-05,2]
[353152306,1739613046344,-151.0,8.852e-05,2]
[353152307,1739613046353,-151.0,8.852e-05,2]
[353152308,1739613046363,-156.304595,8.852e-05,2]
[353152309,1739613046373,-513.70592896,8.853e-05,2]
[353152310,1739613046382,-600.68134578,8.853e-05,2]
[353152311,1739613046392,-500.0,8.853e-05,2]
[353152313,1739613046402,-500.0,8.853e-05,2]
[353152314,1739613046413,-502.02962199,8.853e-05,2]
[353152315,1739613046423,-500.0,8.853e-05,2]
[353152316,1739613046433,-500.0,8.853e-05,2]
[353152317,1739613046444,-500.0,8.853e-05,2]
[353152318,1739613046454,-500.0,8.853e-05,2]
[353152319,1739613046465,-500.0,8.853e-05,2]
[353152320,1739613046475,-500.0,8.853e-05,2]
[353152321,1739613046485,-500.0,8.853e-05,2]
[353152322,1739613046496,-500.0,8.853e-05,2]
[353152323,1739613046506,-503.97340567,8.853e-05,2]
[353152324,1739613046528,-500.0,8.853e-05,2]
[353152325,1739613046550,-500.0,8.853e-05,2]
[353152326,1739613046568,-501.25034893,8.853e-05,2]
[353152327,1739613046587,-500.0,8.853e-05,2]
[353152328,1739613046607,-281.37705911,8.853e-05,2]
[353152329,1739613046626,-500.0,8.853e-05,2]
[353152330,1739613046644,-500.0,8.853e-05,2]
[353152331,1739613046663,-500.0,8.853e-05,2]
[353152332,1739613046680,-500.0,8.853e-05,2]
[353152333,1739613046694,-500.0,8.853e-05,2]
[353152334,1739613046710,-500.0,8.853e-05,2]
[353152335,1739613046728,-512.27553037,8.853e-05,2]
[353152336,1739613046746,-500.0,8.853e-05,2]
[353152337,1739613046765,-500.0,8.853e-05,2]
[353152338,1739613046778,-500.0,8.853e-05,2]
[353152339,1739613046792,-500.0,8.853e-05,2]
[353152340,1739613046810,-500.0,8.853e-05,2]
[353152341,1739613046823,-500.0,8.853e-05,2]
[353152342,1739613046841,-500.0,8.853e-05,2]
[353152343,1739613046856,-500.0,8.853e-05,2]
[353152344,1739613046871,-500.0,8.853e-05,2]
[353152345,1739613046886,-501.32448758,8.853e-05,2]
[353152346,1739613046902,-500.0,8.853e-05,2]
[353152347,1739613046917,-500.0,8.853e-05,2]
[353152348,1739613046934,-500.0,8.853e-05,2]
[353152349,1739613046949,-1328.97,8.853e-05,2]
[353152350,1739613046964,-502.48786225,8.853e-05,2]
[353152351,1739613046978,-500.0,8.853e-05,2]
[353152352,1739613046995,-500.0,8.853e-05,2]
[353152353,1739613047010,-501.82882613,8.853e-05,2]
[353152354,1739613047023,-500.0,8.853e-05,2]
[353152355,1739613047037,-500.0,8.853e-05,2]
[353152356,1739613047051,-500.0,8.853e-05,2]
[353152357,1739613047066,-500.0,8.853e-05,2]
[353152358,1739613047080,-955.18,8.853e-05,2]
[353152359,1739613047095,-500.0,8.853e-05,2]
[353152360,1739613047109,-500.0,8.853e-05,2]
[353152361,1739613047123,-500.0,8.853e-05,2]
[353152362,1739613047137,-500.0,8.853e-05,2]
[353152363,1739613047151,-500.0,8.853e-05,2]
[353152364,1739613047165,-500.0,8.853e-05,2]
[353152365,1739613047179,-500.0,8.853e-05,2]
[353152366,1739613047193,-436.203,8.853e-05,2]
[353152367,1739613047207,-502.68531667,8.853e-05,2]
[353152368,1739613047221,-911.84,8.853e-05,2]
[353152369,1739613047235,-500.0,8.853e-05,2]
[353152370,1739613047249,-500.0,8.853e-05,2]
[353152371,1739613047263,-1191.99,8.853e-05,2]
[353152372,1739613047277,-500.0,8.853e-05,2]
[353152373,1739613047291,-794.46,8.853e-05,2]
[353152374,1739613047305,-501.09734876,8.853e-05,2]
[353152375,1739613047319,-500.0,8.853e-05,2]
[353152376,1739613047333,-501.54839541,8.853e-05,2]
[353152377,1739613047347,-500.0,8.853e-05,2]
[353152378,1739613047361,-500.0,8.853e-05,2]
[353152379,1739613047376,-500.0,8.853e-05,2]
[353152380,1739613047393,-500.0,8.853e-05,2]
[353152381,1739613047406,-500.0,8.853e-05,2]
[353152382,1739613047417,-500.0,8.853e-05,2]
[353152383,1739613047427,-500.0,8.853e-05,2]
[353152384,1739613047437,-840.28,8.853e-05,2]
[353152385,1739613047447,-500.0,8.853e-05,2]
[353152386,1739613047604,-500.0,8.853e-05,2]
[353152387,1739613047621,-528.08,8.853e-05,2]
[353152388,1739613047630,-500.0,8.853e-05,2]
[353152389,1739613047639,-500.0,8.853e-05,2]
[353152390,1739613047649,-500.0,8.853e-05,2]
[353152391,1739613047658,-500.0,8.853e-05,2]
[353152392,1739613047667,-500.0,8.853e-05,2]
[353152393,1739613047676,-507.12055664,8.853e-05,2]
[353152394,1739613047685,-500.74500123,8.853e-05,2]
[353152395,1739613047694,-500.0,8.853e-05,2]
[353152396,1739613047704,-500.0,8.853e-05,2]
[353152397,1739613047713,-500.0,8.853e-05,2]
[353152398,1739613047722,-494.88799908,8.853e-05,2]
[353152399,1739613047731,-501.63529037,8.853e-05,2]
[353152400,1739613047740,-500.0,8.853e-05,2]
[353152401,1739613047749,-440.32632663,8.853e-05,2]
[353152402,1739613048106,-59.67367337,8.853e-05,2]
[353152403,1739613048115,-500.0,8.853e-05,2]
[353152404,1739613048125,-500.0,8.853e-05,2]
[353152405,1739613048136,-990.46,8.853e-05,2]
[353152406,1739613048145,-571.64387894,8.853e-05,2]
[353152407,1739613048155,-500.0,8.853e-05,2]
[353152408,1739613048166,-500.0,8.853e-05,2]
[353152409,1739613048176,-500.0,8.853e-05,2]
[353152410,1739613048185,-500.0,8.853e-05,2]
[353152411,1739613048195,-500.0,8.853e-05,2]
[353152412,1739613048206,-500.0,8.853e-05,2]
[353152413,1739613048216,-648.97,8.853e-05,2]
[353152414,1739613048225,-500.0,8.853e-05,2]
[353152415,1739613048235,-500.0,8.853e-05,2]
[353152416,1739613048245,-500.0,8.853e-05,2]
[353152417,1739613048254,-500.0,8.853e-05,2]
[353152418,1739613048264,-500.0,8.853e-05,2]
[353152419,1739613048274,-500.87060249,8.853e-05,2]
[353152420,1739613048283,-500.64541399,8.853e-05,2]
[353152421,1739613048293,-74.83639921,8.853e-05,2]
[353152422,1739613048304,-425.16360079,8.853e-05,2]
[353152423,1739613048313,-501.29750601,8.853e-05,2]
[353152424,1739613048323,-1546.71,8.853e-05,2]
[353152425,1739613048333,-500.0,8.853e-05,2]
[353152426,1739613048347,-500.59262654,8.853e-05,2]
[353152427,1739613048357,-2561.89,8.853e-05,2]
[353152428,1739613048366,-502.40140887,8.853e-05,2]
[353152429,1739613048376,-539.19,8.853e-05,2]
[353152430,1739613048386,-500.0,8.853e-05,2]
[353152431,1739613048395,-500.0,8.853e-05,2]
[353152432,1739613048405,-501.72311353,8.853e-05,2]
[353152433,1739613048416,-90.62623494,8.853e-05,2]
[353152434,1739613048428,-409.37376506,8.853e-05,2]
[353152435,1739613048438,-242.33623494,8.853e-05,2]
[353152436,1739613320393,-2000.0,0.00017872,30]
[353152437,1739613320417,-2000.0,0.00017872,30]
[353152438,1739613320441,-2000.0,0.00017872,30]
[353152439,1739613320464,-2000.0,0.00017872,30]
[353152440,1739613320488,-500.0,0.00017872,120]
[353152441,1739613320511,-189.25,0.00017872,30]
[353152442,1739613320536,-1011.93065001,0.00017872,120]
[353152443,1739613320560,-842.899999,0.00017872,30]
[353152444,1739613320584,-842.899999,0.00017872,30]
[353152445,1739613320608,-5034.510218,0.00017872,35]
[353152446,1739613320632,-1300.0,0.00017872,120]
[353152447,1739613320655,-1000.0,0.00017872,30]
[353152448,1739613320680,-1000.0,0.00017872,30]
[353152449,1739613320703,-1000.0,0.00017872,30]
[353152450,1739613320726,-1000.0,0.00017872,30]
[353152451,1739613320749,-1000.0,0.00017872,30]
[353152452,1739613320772,-1187.7088,0.00017872,30]
[353152453,1739613333106,-392270.0,0.00019,30]
[353152454,1739613333133,-520516.41635546,0.00019372,30]
[353152455,1739613333160,-1000.0,0.000199,30]
[353152456,1739613333187,-1198.5528371,0.0002,30]
[353152457,1739613333213,-45000.0,0.0002,30]
[353152458,1739613333240,-389.33544212,0.0002,120]
[353152459,1739613333265,-403.0,0.0002,60]
[353152460,1739613333291,-3884.93010161,0.0002,30]
[353152461,1739613333319,-293.0,0.0002,120]
[353152462,1739613333346,-35044.76526371,0.0002,120]
[353152463,1739613337595,-172968.36243449,0.0002,120]
[353152464,1739613337620,-150.0,0.0002,30]
[353152465,1739613337645,-1333.0,0.00020329,120]
[353152466,1739613337669,-6203.73252031,0.00020437,120]
[353152467,1739613337694,-157.75166289,0.00020508,120]
[353152468,1739613337717,-7681.00714441,0.00020509,120]
[353152469,1739613337747,-5096.30273007,0.000212,30]
[353152470,1739613337773,-15516.30841619,0.000215,30]
[353152471,1739613337797,-60585.22441224,0.00021677,30]
[353152472,1739613337821,-13584.18,0.000218,30]
[353152473,1739613337845,-1100.0,0.00021917,30]
[353152474,1739613337869,-1100.0,0.00021917,30]
[353152475,1739613337892,-936.70520509,0.00021917,30]
[353152476,1739613337917,-35729.67719475,0.00022,30]
[353152477,1739613337942,-529.92974224,0.00022,30]
[353152478,1739613337972,-200.0,0.00022,120]
[353152479,1739613337998,-5000.0,0.000225,30]
[353152480,1739613338023,-672127.81853732,0.0002258,60]
[353152481,1739613341771,-101365.54219499,0.0002258,60]
[353152482,1739613341797,-78450.40438382,0.0002258,60]
[353152483,1739613341822,-161063.84621696,0.000228,30]
[353152484,1739613341847,-659120.20720423,0.00023,30]
[353152485,1739613353558,-1000000.0,0.00023,30]
[353152486,1739613357367,-1000000.0,0.00023,30]
[353152487,1739613366326,-562528.57391235,0.00023,30]
[353152488,1739613366353,-9302.0,0.00023,30]
[353152489,1739613366378,-500.0,0.00023,120]
[353152490,1739613366402,-1084.0,0.00023,120]
[353152491,1739613366428,-2000.0,0.00023288,120]
[353152492,1739613366454,-500.0,0.00024,120]
[353152493,1739613366480,-48417.08712201,0.00024,120]
[353152494,1739613366506,-320.45965512,0.00024,120]
[353152495,1739613366531,-818.0,0.00024,60]
[353152496,1739613366556,-182.00595468,0.00024,120]
[353152497,1739613366583,-1307.0,0.00024658,120]
[353152498,1739613366608,-167.80277177,0.00024932,30]
[353152499,1739613366635,-4802.60445249,0.00025,30]
[353152500,1739613366661,-5470.0,0.00025,30]
[353152501,1739613366688,-5000.0,0.00025,30]
[353152502,1739613366714,-49999.999999,0.00025,30]
[353152503,1739613366739,-137434.59655866,0.00025,30]
[353152504,1739613366764,-85991.45964373,0.00025,30]
[353152505,1739613366790,-4026.13918142,0.00025,60]
[353152506,1739613366816,-500.0,0.00025,120]
[353152507,1739613366842,-200.0,0.00025,120]
[353152508,1739613366868,-499.0,0.00025,120]
[353152509,1739613367002,-5689.84059199,0.00025,30]
[353152510,1739613367028,-73259.43015678,0.00025,30]
[353152511,1739613371365,-511085.76751698,0.00025,30]
[353152512,1739613371390,-7438.69753278,0.00025,30]
[353152513,1739613371416,-200000.0,0.000255,30]
[353152514,1739613371442,-500.0,0.00026,120]
[353152515,1739613371466,-7438.69753278,0.00026,120]
[353152516,1739613371490,-5187.07916479,0.000261,60]
[353152517,1739613371515,-384.81614411,0.0002661,30]
[353152518,1739613371539,-3136.32,0.00027,30]
[353152519,1739613371563,-5000.0,0.00027,30]
[353152520,1739613371587,-5000.0,0.00027,30]
[353152521,1739613371610,-5000.0,0.00027,30]
[353152522,1739613371635,-5000.0,0.00027,30]
[353152523,1739613371659,-5000.0,0.00027,30]
[353152524,1739613371684,-5000.0,0.00027,30]
[353152525,1739613371709,-5000.0,0.00027,30]
[353152526,1739613371734,-5000.0,0.00027,30]
[353152527,1739613371758,-5000.0,0.00027,30]
[353152528,1739613371783,-5000.0,0.00027,30]
[353152529,1739613371808,-5000.0,0.00027,30]
[353152530,1739613371833,-5000.0,0.00027,30]
[353152531,1739613371859,-5000.0,0.00027,30]
[353152532,1739613371883,-5000.0,0.00027,30]
[353152533,1739613371907,-5000.0,0.00027,30]
[353152534,1739613371931,-5000.0,0.00027,30]
[353152535,1739613371954,-3172.6,0.00027,30]
[353152536,1739613371978,-1106.59532,0.00027,120]
[353152537,1739613372002,-1106.59532,0.00027,120]
[353152538,1739613372026,-1106.59532,0.00027,120]
[353152539,1739613372050,-1106.59532,0.00027,120]
[353152540,1739613372075,-1106.59532,0.00027,120]
[353152541,1739613372100,-1106.59532,0.00027,120]
[353152542,1739613372124,-1106.59532,0.00027,120]
[353152543,1739613372149,-1106.59532,0.00027,120]
[353152544,1739613372176,-1106.59534,0.00027,120]
[353152545,1739613372201,-633.5609773,0.00027,120]
[353152546,1739613372225,-2967.21780404,0.00027,120]
[353152547,1739613372248,-168095.88542722,0.0002712,120]
[353152549,1739613532591,150.0,0.0001788,60]
[353152550,1739613533354,150.0,0.0001788,90]
[353152555,1739613668379,2418.70289534,8.845e-05,2]
[353152556,1739613677043,2905.40362506,8.845e-05,2]
[353152557,1739613752073,189.25,0.00018265,30]
[353152558,1739613759932,1000.0,0.00018265,30]
[353152559,1739613760137,1000.0,0.00018265,30]
[353152560,1739613760490,1000.0,0.00018265,30]
[353152561,1739613761104,1000.0,0.00018265,30]
[353152562,1739613761421,1000.0,0.00018265,30]
[353152563,1739613761778,1813.4048,0.00018265,30]
[353152564,1739613767849,6171.2741824,8.75e-05,2]
[353152565,1739613770581,842.9,0.00018265,30]
[353152566,1739613772161,2000.0,0.00018265,30]
[353152567,1739613773001,2000.0,0.00018265,30]
[353152568,1739613773655,842.899999,0.00018265,30]
[353152569,1739613775512,2000.0,0.00018265,30]
[353152570,1739613775909,2000.0,0.00018265,30]
[353152571,1739613776294,842.899999,0.00018265,30]
[353152572,1739613777947,2000.0,0.00018265,30]
[353152573,1739613778376,2000.0,0.00018265,30]
[353152574,1739613778792,842.899999,0.00018265,30]
[353152575,1739613779873,2000.0,0.00018265,30]
[353152576,1739613780266,2000.0,0.00018265,30]
[353152577,1739613780580,842.899999,0.00018265,30]
[353152578,1739613814656,500.0,0.00018265,120]
[353152580,1739613831366,150.0,0.00018265,90]
[353152582,1739613918459,600.0,8.635e-05,2]
[353152583,1739613918752,601.67689935,8.725e-05,2]
[353152588,1739614057378,200.0,0.00019,120]
[353152590,1739614096222,193.0,8.64e-05,2]
[353152592,1739614135259,150.0,0.00018282,120]
[353152648,1739614231866,-300.0,8.846e-05,2]
[353152649,1739614231876,-500.0,8.847e-05,2]
[353152650,1739614231885,-1758.84,8.847e-05,2]
[353152651,1739614231894,-2876.67519239,8.847e-05,2]
[353152652,1739614231905,-1021.86804867,8.847e-05,2]
[353152689,1739614232138,-920.37675894,8.847e-05,2]
[353152692,1739614232148,-519.93,8.847e-05,2]
[353152695,1739614232157,-570.37,8.847e-05,2]
[353152698,1739614232166,-500.0,8.847e-05,2]
[353152701,1739614232175,-755.65,8.847e-05,2]
[353152704,1739614232185,-1406.53,8.847e-05,2]
[353152706,1739614232195,-4038.89,8.847e-05,2]
[353152709,1739614232205,-2833.27,8.847e-05,2]
[353152712,1739614232214,-11313.15,8.847e-05,2]
[353152714,1739614232224,-3791.85,8.847e-05,2]
[353152717,1739614232234,-1943.16,8.847e-05,2]
[353152720,1739614232243,-557.5,8.847e-05,2]
[353152723,1739614232253,-500.0,8.847e-05,2]
[353152726,1739614232262,-2419.32,8.847e-05,2]
[353152729,1739614232272,-830.12,8.847e-05,2]
[353152732,1739614232281,-5756.09,8.847e-05,2]
[353152734,1739614232291,-500.0,8.847e-05,2]
[353152736,1739614232301,-478.01511644,8.847e-05,2]
[353152738,1739614232310,-500.0,8.847e-05,2]
[353152740,1739614232319,-3060.26,8.847e-05,2]
[353152743,1739614232329,-1388.66,8.847e-05,2]
[353152745,1739614232339,-1000.92,8.847e-05,2]
[353152747,1739614232350,-796.62,8.847e-05,2]
[353152749,1739614232360,-2981.4,8.847e-05,2]
[353152751,1739614232369,-4216.24,8.847e-05,2]
[353152753,1739614232382,-612.78,8.847e-05,2]
[353152755,1739614232392,-7897.34,8.847e-05,2]
[353152756,1739614232401,-2082.03,8.847e-05,2]
[353152759,1739614232411,-500.0,8.847e-05,2]
[353152760,1739614232421,-500.0,8.848e-05,2]
[353152763,1739614232431,-1097.39,8.848e-05,2]
[353152765,1739614232440,-500.0,8.848e-05,2]
[353152767,1739614232450,-504.05344191,8.848e-05,2]
[353152769,1739614232461,-332.5485147,8.848e-05,2]
[353152771,1739614232470,-938.02,8.848e-05,2]
[353152773,1739614232480,-968.8,8.848e-05,2]
[353152775,1739614232489,-500.0,8.848e-05,2]
[353152777,1739614232498,-1826.62,8.848e-05,2]
[353152778,1739614232507,-500.0,8.848e-05,2]
[353152781,1739614232517,-1580.3,8.848e-05,2]
[353152783,1739614232526,-500.0,8.848e-05,2]
[353152785,1739614232537,-936.39,8.848e-05,2]
[353152787,1739614232545,-500.0,8.848e-05,2]
[353152789,1739614232555,-500.0,8.848e-05,2]
[353152791,1739614232564,-500.0,8.848e-05,2]
[353152804,1739614232685,-500.0,8.848e-05,2]
[353152806,1739614232696,-503.845709,8.848e-05,2]
[353152808,1739614232706,-462.15057347,8.848e-05,2]
[353152810,1739614232716,-984.05,8.848e-05,2]
[353152813,1739614232726,-500.0,8.848e-05,2]
[353152814,1739614232735,-500.0,8.848e-05,2]
[353152816,1739614232745,-500.0,8.848e-05,2]
[353152819,1739614232755,-1401.5,8.848e-05,2]
[353152820,1739614232764,-616.56,8.848e-05,2]
[353152822,1739614232774,-1055.39,8.848e-05,2]
[353152825,1739614232783,-500.0,8.848e-05,2]
[353152827,1739614232793,-500.0,8.848e-05,2]
[353152829,1739614232803,-500.0,8.848e-05,2]
[353152830,1739614232814,-984.78,8.848e-05,2]
[353152832,1739614232823,-503.45455825,8.848e-05,2]
[353152835,1739614232833,-500.0,8.848e-05,2]
[353152836,1739614232842,-831.98,8.848e-05,2]
[353152839,1739614232852,-1038.73,8.848e-05,2]
[353152841,1739614232861,-503.12290678,8.848e-05,2]
[353152843,1739614232871,-500.0,8.848e-05,2]
[353152845,1739614232881,-500.0,8.848e-05,2]
[353152847,1739614232891,-500.0,8.848e-05,2]
[353152849,1739614232901,-500.0,8.848e-05,2]
[353152851,1739614232911,-500.0,8.848e-05,2]
[353152853,1739614232921,-750.36,8.848e-05,2]
[353152855,1739614232930,-500.0,8.848e-05,2]
[353152857,1739614232941,-509.16908993,8.848e-05,2]
[353152859,1739614232950,-1651.39,8.848e-05,2]
[353152861,1739614232960,-500.0,8.848e-05,2]
[353152863,1739614232969,-500.0,8.848e-05,2]
[353152865,1739614232979,-500.0,8.848e-05,2]
[353152867,1739614232988,-500.0,8.848e-05,2]
[353152869,1739614232997,-500.0,8.848e-05,2]
[353152871,1739614233007,-500.0,8.848e-05,2]
[353152873,1739614233015,-500.0,8.848e-05,2]
[353152875,1739614233025,-500.0,8.848e-05,2]
[353152877,1739614233035,-975.88,8.848e-05,2]
[353152879,1739614233045,-503.08663227,8.848e-05,2]
[353152881,1739614233054,-500.0,8.848e-05,2]
[353152883,1739614233064,-500.0,8.848e-05,2]
[353152884,1739614233073,-500.0,8.848e-05,2]
[353152887,1739614233084,-500.0,8.848e-05,2]
[353152888,1739614233094,-500.0,8.848e-05,2]
[353152890,1739614233104,-1243.19,8.848e-05,2]
[353152892,1739614233113,-500.0,8.848e-05,2]
[353152894,1739614233123,-500.0,8.848e-05,2]
[353152896,1739614233133,-500.0,8.848e-05,2]
[353152898,1739614233143,-500.0,8.848e-05,2]
[353152900,1739614233153,-500.0,8.848e-05,2]
[353152902,1739614233163,-500.0,8.848e-05,2]
[353152904,1739614233172,-500.0,8.848e-05,2]
[353152906,1739614233182,-500.0,8.848e-05,2]
[353152908,1739614233192,-500.0,8.848e-05,2]
[353152910,1739614233201,-500.0,8.848e-05,2]
[353152912,1739614233211,-619.64,8.848e-05,2]
[353152913,1739614233220,-6071.7,8.848e-05,2]
[353152914,1739614233229,-1678.06,8.848e-05,2]
[353152915,1739614233239,-500.0,8.848e-05,2]
[353152916,1739614233248,-500.0,8.848e-05,2]
[353152917,1739614233257,-500.0,8.848e-05,2]
[353152918,1739614233267,-500.0,8.848e-05,2]
[353152920,1739614233277,-526.5857815,8.848e-05,2]
[353152921,1739614233286,-1389.12,8.848e-05,2]
[353152922,1739614233295,-500.0,8.848e-05,2]
[353152923,1739614233304,-3258.73,8.848e-05,2]
[353152924,1739614233314,-500.0,8.848e-05,2]
[353152925,1739614233323,-500.0,8.848e-05,2]
[353152926,1739614233332,-501.62519235,8.848e-05,2]
[353152927,1739614233342,-2720.61,8.848e-05,2]
[353152928,1739614233351,-500.0,8.848e-05,2]
[353152929,1739614233360,-500.0,8.848e-05,2]
[353152930,1739614233370,-500.0,8.848e-05,2]
[353152931,1739614233383,-500.0,8.848e-05,2]
[353152932,1739614233393,-753.32,8.848e-05,2]
[353152933,1739614233403,-500.0,8.848e-05,2]
[353152934,1739614233412,-624.32,8.848e-05,2]
[353152935,1739614233423,-500.0,8.848e-05,2]
[353152936,1739614233433,-501.22555642,8.848e-05,2]
[353152937,1739614233443,-2563.43,8.848e-05,2]
[353152938,1739614233453,-500.0,8.848e-05,2]
[353152939,1739614233464,-500.0,8.848e-05,2]
[353152940,1739614233474,-500.0,8.848e-05,2]
[353152941,1739614233484,-500.0,8.848e-05,2]
[353152942,1739614233493,-500.0,8.848e-05,2]
[353152943,1739614233503,-500.0,8.848e-05,2]
[353152944,1739614233512,-3505.87,8.848e-05,2]
[353152945,1739614233522,-500.0,8.848e-05,2]
[353152947,1739614233532,-500.0,8.848e-05,2]
[353152948,1739614233541,-500.0,8.848e-05,2]
[353152949,1739614233551,-500.0,8.848e-05,2]
[353152950,1739614233560,-500.0,8.848e-05,2]
[353152951,1739614233570,-500.0,8.848e-05,2]
[353152952,1739614233580,-500.0,8.848e-05,2]
[353152953,1739614233589,-501.41026029,8.848e-05,2]
[353152954,1739614233599,-933.12,8.848e-05,2]
[353152955,1739614233608,-1127.76,8.848e-05,2]
[353152956,1739614233618,-500.0,8.848e-05,2]
[353152957,1739614233627,-500.0,8.848e-05,2]
[353152958,1739614233637,-500.0,8.848e-05,2]
[353152959,1739614233646,-500.0,8.848e-05,2]
[353152960,1739614233656,-745.52,8.848e-05,2]
[353152961,1739614233665,-500.0,8.848e-05,2]
[353152962,1739614233674,-500.0,8.848e-05,2]
[353152963,1739614233684,-191.37906272,8.848e-05,2]
[353152964,1739614233694,-500.0,8.848e-05,2]
[353152965,1739614233703,-361.60495499,8.848e-05,2]
[353152966,1739614233713,-500.0,8.848e-05,2]
[353152967,1739614233722,-1240.93,8.848e-05,2]
[353152968,1739614233731,-500.0,8.848e-05,2]
[353152969,1739614233741,-500.0,8.848e-05,2]
[353152970,1739614233751,-1273.59,8.848e-05,2]
[353152971,1739614233761,-2670.14,8.848e-05,2]
[353152972,1739614233771,-500.0,8.848e-05,2]
[353152973,1739614233781,-500.0,8.848e-05,2]
[353152974,1739614233790,-500.0,8.848e-05,2]
[353152975,1739614233800,-915.38,8.848e-05,2]
[353152976,1739614233809,-1837.29779018,8.848e-05,2]
[353152977,1739614233819,-500.0,8.848e-05,2]
[353152978,1739614233829,-873.85,8.848e-05,2]
[353152979,1739614233838,-734.22,8.848e-05,2]
[353152980,1739614233848,-1601.21,8.848e-05,2]
[353152981,1739614233857,-500.0,8.848e-05,2]
[353152982,1739614233867,-1182.27,8.848e-05,2]
[353152983,1739614233877,-500.0,8.848e-05,2]
[353152984,1739614233886,-500.0,8.848e-05,2]
[353152985,1739614233895,-1142.33,8.848e-05,2]
[353152986,1739614233905,-1019.77,8.848e-05,2]
[353152987,1739614233914,-500.0,8.848e-05,2]
[353152988,1739614233924,-500.0,8.848e-05,2]
[353152989,1739614233934,-500.0,8.848e-05,2]
[353152990,1739614233944,-500.0,8.848e-05,2]
[353152991,1739614233955,-500.0,8.848e-05,2]
[353152992,1739614233965,-500.0,8.848e-05,2]
[353152993,1739614233974,-500.0,8.848e-05,2]
[353152994,1739614233984,-500.0,8.848e-05,2]
[353152995,1739614233993,-761.35,8.848e-05,2]
[353152996,1739614234002,-6588.54,8.848e-05,2]
[353152997,1739614234012,-1547.68,8.848e-05,2]
[353152998,1739614234021,-494.65173746,8.848e-05,2]
[353152999,1739614234031,-500.0,8.848e-05,2]
[353153000,1739614234040,-365.54904559,8.848e-05,2]
[353153001,1739614234050,-500.0,8.848e-05,2]
[353153002,1739614234059,-500.0,8.848e-05,2]
[353153003,1739614234068,-783.48,8.848e-05,2]
[353153004,1739614234077,-500.0,8.848e-05,2]
[353153005,1739614234086,-500.0,8.848e-05,2]
[353153006,1739614234095,-500.0,8.848e-05,2]
[353153007,1739614234105,-500.0,8.848e-05,2]
[353153008,1739614234114,-521.3328132,8.848e-05,2]
[353153009,1739614234124,-567.39939383,8.848e-05,2]
[353153010,1739614234133,-500.0,8.848e-05,2]
[353153011,1739614234142,-613.86,8.848e-05,2]
[353153012,1739614234152,-500.0,8.848e-05,2]
[353153013,1739614234162,-500.0,8.848e-05,2]
[353153014,1739614234172,-500.0,8.848e-05,2]